[Event "Late-Titled-Tuesday-Blitz-May-14-2024"]
[Site "Chess.com"]
[Date "2024.05.14"]
[Round "11"]
[White "Boorchess"]
[Black "Atanejhad"]
[Result "1-0"]
[WhiteElo "2598"]
[BlackElo "2477"]
[TimeControl "180+1"]
[EndTime "16:04:00 PDT"]
[Termination "Boorchess won by resignation"]

1. d4 {[%clk 0:03:00.9]} 1... d5 {[%clk 0:02:58.6]} 2. c4 {[%clk 0:03:00.9]}
2... e6 {[%clk 0:02:58.3]} 3. Nf3 {[%clk 0:03:00.6]} 3... Nf6 {[%clk 0:02:58.7]}
4. g3 {[%clk 0:03:00.9]} 4... c6 {[%clk 0:02:58.8]} 5. Qc2 {[%clk 0:03:00.5]}
5... Nbd7 {[%clk 0:02:57.9]} 6. Bg2 {[%clk 0:03:00.7]} 6... Bd6 {[%clk
0:02:55.8]} 7. O-O {[%clk 0:03:00.7]} 7... O-O {[%clk 0:02:55.4]} 8. Nfd2 {[%clk
0:03:01.1]} 8... e5 {[%clk 0:02:52.9]} 9. cxd5 {[%clk 0:03:00.2]} 9... cxd5
{[%clk 0:02:52.3]} 10. dxe5 {[%clk 0:02:56.1]} 10... Nxe5 {[%clk 0:02:53.2]} 11.
Nf3 {[%clk 0:02:53.3]} 11... Bg4 {[%clk 0:02:47]} 12. Nc3 {[%clk 0:02:51.3]}
12... Rc8 {[%clk 0:02:45.3]} 13. Nxe5 {[%clk 0:02:46.7]} 13... Bxe5 {[%clk
0:02:44.8]} 14. Qd3 {[%clk 0:02:44.8]} 14... d4 {[%clk 0:02:40.4]} 15. Ne4
{[%clk 0:02:44.4]} 15... Bf5 {[%clk 0:02:36.5]} 16. Bg5 {[%clk 0:02:41.2]} 16...
Qb6 {[%clk 0:02:29.7]} 17. Nxf6+ {[%clk 0:02:37.3]} 17... Bxf6 {[%clk
0:02:08.2]} 18. Qxf5 {[%clk 0:02:36.2]} 18... Rc5 {[%clk 0:02:07.7]} 19. Qf3
{[%clk 0:02:25.6]} 19... Rxg5 {[%clk 0:02:05.5]} 20. Qxb7 {[%clk 0:02:24.7]}
20... Qxb7 {[%clk 0:02:06.4]} 21. Bxb7 {[%clk 0:02:18.7]} 21... Rb5 {[%clk
0:02:06.8]} 22. Be4 {[%clk 0:02:19.3]} 22... Rxb2 {[%clk 0:02:06.4]} 23. Bd3
{[%clk 0:02:19.3]} 23... g6 {[%clk 0:02:01]} 24. a4 {[%clk 0:02:19.1]} 24... a5
{[%clk 0:01:58.8]} 25. Rfc1 {[%clk 0:02:18.8]} 25... Be7 {[%clk 0:01:51.3]} 26.
Rc7 {[%clk 0:02:17.1]} 26... Bb4 {[%clk 0:01:50.2]} 27. Rd7 {[%clk 0:02:16]}
27... Bc3 {[%clk 0:01:49.3]} 28. Rb1 {[%clk 0:02:12]} 28... Rb4 {[%clk
0:01:41.2]} 29. Rxb4 {[%clk 0:02:05.3]} 29... axb4 {[%clk 0:01:42.1]} 30. Bc4
{[%clk 0:02:03.5]} 30... Kg7 {[%clk 0:01:32.8]} 31. Kf1 {[%clk 0:02:02.7]} 31...
Kf6 {[%clk 0:01:31.3]} 32. Bb3 {[%clk 0:01:55.2]} 32... g5 {[%clk 0:01:25.1]}
33. a5 {[%clk 0:01:53.5]} 33... Ra8 {[%clk 0:01:19.4]} 34. Rxf7+ {[%clk
0:01:39.6]} 34... Kg6 {[%clk 0:01:16.7]} 35. Rb7 {[%clk 0:01:35.1]} 35... Rxa5
{[%clk 0:01:15.9]} 36. Bc2+ {[%clk 0:01:34.8]} 36... Kf6 {[%clk 0:01:15.2]} 37.
Bxh7 {[%clk 0:01:29.2]} 37... g4 {[%clk 0:01:07.1]} 38. Bd3 {[%clk 0:01:27.1]}
38... Rh5 {[%clk 0:01:04.1]} 39. Kg2 {[%clk 0:01:26]} 39... Ra5 {[%clk
0:01:03.3]} 40. f3 {[%clk 0:01:19.5]} 40... gxf3+ {[%clk 0:01:01]} 41. Kxf3
{[%clk 0:01:18.4]} 41... Ra1 {[%clk 0:01:01.4]} 42. Kg2 {[%clk 0:01:15.4]} 42...
Ke5 {[%clk 0:00:58.1]} 43. h4 {[%clk 0:01:14.5]} 43... Kd6 {[%clk 0:00:57.1]}
44. h5 {[%clk 0:01:13.4]} 44... Kc6 {[%clk 0:00:44.2]} 45. Rb8 {[%clk
0:01:09.1]} 45... Kc7 {[%clk 0:00:41.9]} 46. Rb5 {[%clk 0:01:04.9]} 46... Ra8
{[%clk 0:00:23.2]} 47. g4 {[%clk 0:00:59.6]} 47... Bd2 {[%clk 0:00:20.7]} 48. g5
{[%clk 0:00:59.3]} 48... Rg8 {[%clk 0:00:19.8]} 49. g6 {[%clk 0:00:59]} 49...
Kc6 {[%clk 0:00:18.8]} 50. Kh3 {[%clk 0:00:51.5]} 50... Rg7 {[%clk 0:00:17.5]}
51. Kg4 {[%clk 0:00:51.4]} 51... Rg8 {[%clk 0:00:17.2]} 52. Bc4 {[%clk
0:00:41.8]} 52... Re8 {[%clk 0:00:14.6]} 53. g7 {[%clk 0:00:40.1]} 53... Rg8
{[%clk 0:00:11.3]} 54. Bxg8 {[%clk 0:00:38.9]} 1-0

[Event "Late-Titled-Tuesday-Blitz-May-14-2024"]
[Site "Chess.com"]
[Date "2024.05.14"]
[Round "11"]
[White "ChadBiryani"]
[Black "MaxLeto"]
[Result "0-1"]
[WhiteElo "2523"]
[BlackElo "2401"]
[TimeControl "180+1"]
[EndTime "16:04:00 PDT"]
[Termination "MaxLeto won by checkmate"]

1. c4 {[%clk 0:02:55.3]} 1... e5 {[%clk 0:02:59.7]} 2. g3 {[%clk 0:02:54.7]}
2... Nc6 {[%clk 0:02:59.7]} 3. Bg2 {[%clk 0:02:55.3]} 3... Nf6 {[%clk 0:02:59]}
4. Nc3 {[%clk 0:02:55.8]} 4... Bc5 {[%clk 0:02:57.4]} 5. e3 {[%clk 0:02:55.7]}
5... O-O {[%clk 0:02:57.7]} 6. Nge2 {[%clk 0:02:55.9]} 6... Re8 {[%clk
0:02:56.9]} 7. O-O {[%clk 0:02:56.2]} 7... e4 {[%clk 0:02:57.5]} 8. a3 {[%clk
0:02:52.2]} 8... a5 {[%clk 0:02:56.4]} 9. d4 {[%clk 0:02:50.4]} 9... exd3 {[%clk
0:02:55.9]} 10. Qxd3 {[%clk 0:02:50.9]} 10... d6 {[%clk 0:02:55.2]} 11. Nd4
{[%clk 0:02:45]} 11... Ne5 {[%clk 0:02:54.8]} 12. Qe2 {[%clk 0:02:43.6]} 12...
Bg4 {[%clk 0:02:46.1]} 13. f3 {[%clk 0:02:10.7]} 13... Bxd4 {[%clk 0:02:44.4]}
14. exd4 {[%clk 0:02:08.2]} 14... Nxf3+ {[%clk 0:02:40.6]} 15. Qxf3 {[%clk
0:02:08.5]} 15... Bxf3 {[%clk 0:02:40.6]} 16. Bxf3 {[%clk 0:02:08.7]} 16... c6
{[%clk 0:02:31.9]} 17. Bg5 {[%clk 0:02:03.9]} 17... h6 {[%clk 0:02:26.4]} 18.
Bf4 {[%clk 0:02:04.3]} 18... Qb6 {[%clk 0:02:16.2]} 19. c5 {[%clk 0:01:44.8]}
19... Qxb2 {[%clk 0:02:09.1]} 20. Rfc1 {[%clk 0:01:34.3]} 20... dxc5 {[%clk
0:02:06.6]} 21. dxc5 {[%clk 0:01:33.2]} 21... Rad8 {[%clk 0:01:41]} 22. Bd6
{[%clk 0:01:17]} 22... Qd2 {[%clk 0:01:37.8]} 23. Bg2 {[%clk 0:01:09.8]} 23...
Ng4 {[%clk 0:01:28.8]} 24. h3 {[%clk 0:00:55.1]} 24... Qe3+ {[%clk 0:01:00.7]}
25. Kh1 {[%clk 0:00:48.6]} 25... Nf2+ {[%clk 0:00:56.7]} 26. Kh2 {[%clk
0:00:48.1]} 26... Nd3 {[%clk 0:00:55.3]} 27. Rc2 {[%clk 0:00:36]} 27... Ne1
{[%clk 0:00:50]} 28. Re2 {[%clk 0:00:14.6]} 28... Qxc3 {[%clk 0:00:49.5]} 29.
Raxe1 {[%clk 0:00:15]} 29... Qxe1 {[%clk 0:00:44.8]} 30. Rxe1 {[%clk 0:00:15.3]}
30... Rxe1 {[%clk 0:00:45.4]} 31. h4 {[%clk 0:00:12.7]} 31... Ra1 {[%clk
0:00:38.3]} 32. Kh3 {[%clk 0:00:10]} 32... Rxa3 {[%clk 0:00:38.9]} 33. Be4
{[%clk 0:00:10]} 33... Ra4 {[%clk 0:00:36.7]} 34. Bf5 {[%clk 0:00:07.1]} 34...
Rd4 {[%clk 0:00:35.8]} 35. Bc7 {[%clk 0:00:06.4]} 35... R8d5 {[%clk 0:00:34.7]}
36. Bc8 {[%clk 0:00:04.8]} 36... a4 {[%clk 0:00:27.1]} 37. Bf4 {[%clk
0:00:02.7]} 37... Rxf4 {[%clk 0:00:25]} 38. gxf4 {[%clk 0:00:02.7]} 38... a3
{[%clk 0:00:25.1]} 39. Bxb7 {[%clk 0:00:01]} 39... a2 {[%clk 0:00:25.3]} 40.
Bxc6 {[%clk 0:00:01.7]} 40... Rxc5 {[%clk 0:00:24.9]} 41. Bf3 {[%clk 0:00:01.3]}
41... a1=Q {[%clk 0:00:25]} 42. f5 {[%clk 0:00:01.7]} 42... Qe5 {[%clk
0:00:25.1]} 43. h5 {[%clk 0:00:00.3]} 43... Rc3 {[%clk 0:00:26]} 44. Kh4 {[%clk
0:00:00.1]} 44... Qf4+ {[%clk 0:00:26.2]} 45. Bg4 {[%clk 0:00:00.3]} 45... Qh2+
{[%clk 0:00:26.5]} 46. Bh3 {[%clk 0:00:00.4]} 46... Qxh3# {[%clk 0:00:27.3]} 0-1

[Event "Late-Titled-Tuesday-Blitz-May-14-2024"]
[Site "Chess.com"]
[Date "2024.05.14"]
[Round "11"]
[White "MagnusCarlsen"]
[Black "sergoy"]
[Result "1-0"]
[WhiteElo "3209"]
[BlackElo "3018"]
[TimeControl "180+1"]
[EndTime "16:04:02 PDT"]
[Termination "MagnusCarlsen won by checkmate"]

1. d4 {[%clk 0:03:00.9]} 1... d5 {[%clk 0:02:59.3]} 2. c4 {[%clk 0:03:00.8]}
2... c6 {[%clk 0:02:59.9]} 3. cxd5 {[%clk 0:02:58.5]} 3... cxd5 {[%clk 0:03:00]}
4. Bf4 {[%clk 0:02:58.5]} 4... Nc6 {[%clk 0:03:00.1]} 5. e3 {[%clk 0:02:57.9]}
5... Nf6 {[%clk 0:02:58.2]} 6. Bd3 {[%clk 0:02:58.4]} 6... a6 {[%clk 0:02:57.9]}
7. h3 {[%clk 0:02:53.2]} 7... Qb6 {[%clk 0:02:49.1]} 8. Nc3 {[%clk 0:02:41.4]}
8... Qxb2 {[%clk 0:02:45.4]} 9. Nge2 {[%clk 0:02:41.2]} 9... Qb6 {[%clk
0:02:42.7]} 10. O-O {[%clk 0:02:36.3]} 10... Qd8 {[%clk 0:02:40]} 11. e4 {[%clk
0:02:35.3]} 11... e6 {[%clk 0:02:36]} 12. e5 {[%clk 0:02:34.3]} 12... Nh5 {[%clk
0:02:31]} 13. Be3 {[%clk 0:02:31]} 13... g6 {[%clk 0:02:31.3]} 14. g4 {[%clk
0:02:30.5]} 14... Ng7 {[%clk 0:02:30.8]} 15. Na4 {[%clk 0:02:27.9]} 15... h5
{[%clk 0:02:29.6]} 16. Kg2 {[%clk 0:02:22.5]} 16... b5 {[%clk 0:02:26.2]} 17.
Rc1 {[%clk 0:02:19.7]} 17... Nb4 {[%clk 0:02:14]} 18. Nc5 {[%clk 0:02:18.9]}
18... Bxc5 {[%clk 0:02:12.1]} 19. Rxc5 {[%clk 0:02:18]} 19... hxg4 {[%clk
0:02:12.3]} 20. hxg4 {[%clk 0:02:16.9]} 20... Qh4 {[%clk 0:02:06.6]} 21. Ng3
{[%clk 0:01:49.1]} 21... Nxd3 {[%clk 0:02:05.7]} 22. Qxd3 {[%clk 0:01:49.7]}
22... Qxg4 {[%clk 0:02:06.4]} 23. Qd1 {[%clk 0:01:50.2]} 23... Qh3+ {[%clk
0:01:04.1]} 24. Kf3 {[%clk 0:01:49.6]} 24... Nf5 {[%clk 0:00:59.7]} 25. Rh1
{[%clk 0:01:21.2]} 25... Nh4+ {[%clk 0:00:59.8]} 26. Ke2 {[%clk 0:01:21.4]}
26... Qg4+ {[%clk 0:00:47]} 27. Kd2 {[%clk 0:01:17.9]} 27... Nf3+ {[%clk
0:00:35.1]} 28. Kc3 {[%clk 0:01:14]} 28... Rxh1 {[%clk 0:00:34.5]} 29. Qxh1
{[%clk 0:01:13.6]} 29... b4+ {[%clk 0:00:33.6]} 30. Kb2 {[%clk 0:01:11]} 30...
Nh4 {[%clk 0:00:32.3]} 31. Rc7 {[%clk 0:00:59.8]} 31... Bd7 {[%clk 0:00:32.2]}
32. Qc1 {[%clk 0:00:58.5]} 32... Nf5 {[%clk 0:00:28.1]} 33. Nxf5 {[%clk
0:00:58.1]} 33... exf5 {[%clk 0:00:21.8]} 34. Qh1 {[%clk 0:00:56.4]} 34... Ke7
{[%clk 0:00:19.2]} 35. Rxd7+ {[%clk 0:00:45.9]} 35... Kxd7 {[%clk 0:00:03.6]}
36. Qxd5+ {[%clk 0:00:46.8]} 36... Ke7 {[%clk 0:00:03.2]} 37. Qxa8 {[%clk
0:00:33.7]} 37... Qe2+ {[%clk 0:00:03.4]} 38. Kb3 {[%clk 0:00:34]} 38... Qd3+
{[%clk 0:00:03.9]} 39. Kxb4 {[%clk 0:00:33.9]} 39... Qb5+ {[%clk 0:00:04.6]} 40.
Kc3 {[%clk 0:00:34]} 40... Qa5+ {[%clk 0:00:05.2]} 41. Kd3 {[%clk 0:00:34.1]}
41... Qb5+ {[%clk 0:00:05.3]} 42. Kd2 {[%clk 0:00:30.5]} 42... Qb4+ {[%clk
0:00:03.8]} 43. Ke2 {[%clk 0:00:28.9]} 43... Qb2+ {[%clk 0:00:02.7]} 44. Kf3
{[%clk 0:00:28.8]} 44... Qxa2 {[%clk 0:00:03]} 45. Bg5+ {[%clk 0:00:27.2]} 45...
Kd7 {[%clk 0:00:02.8]} 46. Qb7+ {[%clk 0:00:26.8]} 46... Ke6 {[%clk 0:00:02.4]}
47. Qc6# {[%clk 0:00:26.3]} 1-0

[Event "Late-Titled-Tuesday-Blitz-May-14-2024"]
[Site "Chess.com"]
[Date "2024.05.14"]
[Round "11"]
[White "SHIVACalypso"]
[Black "Meri-Arabidze"]
[Result "0-1"]
[WhiteElo "2562"]
[BlackElo "2690"]
[TimeControl "180+1"]
[EndTime "16:04:02 PDT"]
[Termination "Meri-Arabidze won by resignation"]

1. d4 {[%clk 0:03:00.9]} 1... Nf6 {[%clk 0:02:59.7]} 2. c4 {[%clk 0:03:00.1]}
2... e6 {[%clk 0:03:00.1]} 3. Nc3 {[%clk 0:02:59.1]} 3... Bb4 {[%clk 0:03:00]}
4. Qc2 {[%clk 0:02:58.5]} 4... O-O {[%clk 0:02:59.5]} 5. Nf3 {[%clk 0:02:57.5]}
5... d5 {[%clk 0:02:58.3]} 6. e3 {[%clk 0:02:57.1]} 6... b6 {[%clk 0:02:53.9]}
7. Bd2 {[%clk 0:02:56.2]} 7... Bb7 {[%clk 0:02:52.3]} 8. Bd3 {[%clk 0:02:56.8]}
8... a6 {[%clk 0:02:47.5]} 9. O-O {[%clk 0:02:57.1]} 9... Bd6 {[%clk 0:02:46.2]}
10. e4 {[%clk 0:02:53.5]} 10... dxe4 {[%clk 0:02:32.4]} 11. Nxe4 {[%clk
0:02:54.4]} 11... Nxe4 {[%clk 0:02:32.6]} 12. Bxe4 {[%clk 0:02:55.3]} 12... Bxe4
{[%clk 0:02:33.1]} 13. Qxe4 {[%clk 0:02:56.2]} 13... Nd7 {[%clk 0:02:33.7]} 14.
Rfe1 {[%clk 0:02:37.6]} 14... c5 {[%clk 0:02:26.4]} 15. Rad1 {[%clk 0:02:35.2]}
15... Nf6 {[%clk 0:02:24.8]} 16. Qh4 {[%clk 0:02:33.6]} 16... Qc7 {[%clk
0:02:22.6]} 17. Bg5 {[%clk 0:02:25.7]} 17... Be7 {[%clk 0:02:22]} 18. dxc5
{[%clk 0:02:18]} 18... bxc5 {[%clk 0:02:15.6]} 19. Qf4 {[%clk 0:01:55.9]} 19...
Qb7 {[%clk 0:02:08.3]} 20. b3 {[%clk 0:01:49.8]} 20... a5 {[%clk 0:02:08.4]} 21.
Ne5 {[%clk 0:01:50]} 21... Rfd8 {[%clk 0:01:58.8]} 22. Ng4 {[%clk 0:01:47.7]}
22... Nxg4 {[%clk 0:01:50.5]} 23. Bxe7 {[%clk 0:01:46.8]} 23... Rxd1 {[%clk
0:01:40.4]} 24. Rxd1 {[%clk 0:01:47.3]} 24... Nxf2 {[%clk 0:01:34.1]} 25. Rd8+
{[%clk 0:01:36.1]} 25... Rxd8 {[%clk 0:01:33.7]} 26. Bxd8 {[%clk 0:01:36.3]}
26... Nd3 {[%clk 0:01:12.3]} 27. Qd2 {[%clk 0:01:28.8]} 27... Qe4 {[%clk
0:01:09.7]} 28. Bxa5 {[%clk 0:01:19.4]} 28... f5 {[%clk 0:01:08.6]} 29. Bc3
{[%clk 0:01:14.6]} 29... h6 {[%clk 0:01:06.4]} 30. a4 {[%clk 0:01:13.1]} 30...
Nf4 {[%clk 0:01:01.1]} 31. a5 {[%clk 0:01:00.9]} 31... Qb1+ {[%clk 0:00:27.9]}
32. Kf2 {[%clk 0:01:00.4]} 32... Qxb3 {[%clk 0:00:27.9]} 33. Bxg7 {[%clk
0:00:36]} 33... Kxg7 {[%clk 0:00:09.1]} 34. Qxf4 {[%clk 0:00:36]} 34... Qa2+
{[%clk 0:00:09.1]} 35. Kf3 {[%clk 0:00:35.8]} 35... Qxa5 {[%clk 0:00:09.2]} 36.
Qe5+ {[%clk 0:00:30.7]} 36... Kf7 {[%clk 0:00:09.4]} 37. Qh8 {[%clk 0:00:31.2]}
37... Qa3+ {[%clk 0:00:08.7]} 38. Kf2 {[%clk 0:00:31.4]} 38... Qa2+ {[%clk
0:00:08.7]} 39. Kf3 {[%clk 0:00:31.2]} 39... Qb3+ {[%clk 0:00:09]} 40. Kf2
{[%clk 0:00:30.8]} 40... Qc2+ {[%clk 0:00:09]} 41. Kf3 {[%clk 0:00:25.7]} 41...
Qe4+ {[%clk 0:00:08.7]} 42. Kf2 {[%clk 0:00:21.4]} 42... Qd4+ {[%clk 0:00:08.4]}
43. Kf3 {[%clk 0:00:20.5]} 43... Qxh8 {[%clk 0:00:08.1]} 0-1

[Event "Late-Titled-Tuesday-Blitz-May-14-2024"]
[Site "Chess.com"]
[Date "2024.05.14"]
[Round "11"]
[White "imdvb6307"]
[Black "Mikhail_Golubev"]
[Result "0-1"]
[WhiteElo "2522"]
[BlackElo "2589"]
[TimeControl "180+1"]
[EndTime "16:04:02 PDT"]
[Termination "Mikhail_Golubev won by resignation"]

1. d4 {[%clk 0:03:00.9]} 1... Nf6 {[%clk 0:02:59.4]} 2. Nf3 {[%clk 0:02:57.2]}
2... d6 {[%clk 0:02:59]} 3. c4 {[%clk 0:02:52.7]} 3... g6 {[%clk 0:02:58.4]} 4.
Nc3 {[%clk 0:02:51.8]} 4... Bg7 {[%clk 0:02:58.9]} 5. e4 {[%clk 0:02:52]} 5...
O-O {[%clk 0:02:59.4]} 6. Be2 {[%clk 0:02:52.2]} 6... e5 {[%clk 0:02:59.6]} 7.
dxe5 {[%clk 0:02:52.3]} 7... dxe5 {[%clk 0:02:59.4]} 8. Qxd8 {[%clk 0:02:52]}
8... Rxd8 {[%clk 0:03:00]} 9. Bg5 {[%clk 0:02:50]} 9... c6 {[%clk 0:02:59.9]}
10. Nxe5 {[%clk 0:02:49.5]} 10... Re8 {[%clk 0:02:59.9]} 11. O-O-O {[%clk
0:02:40.8]} 11... Na6 {[%clk 0:02:58.6]} 12. Rd6 {[%clk 0:02:31.4]} 12... Nh5
{[%clk 0:02:57.8]} 13. Nd3 {[%clk 0:01:50.7]} 13... Bf8 {[%clk 0:02:55.4]} 14.
Rd8 {[%clk 0:01:49.8]} 14... Rxd8 {[%clk 0:02:54.7]} 15. Bxd8 {[%clk 0:01:49.3]}
15... Be6 {[%clk 0:02:54.8]} 16. Bg5 {[%clk 0:01:42.7]} 16... Bxc4 {[%clk
0:02:54.4]} 17. g4 {[%clk 0:01:37.5]} 17... Ng7 {[%clk 0:02:52.8]} 18. Rd1
{[%clk 0:01:29.4]} 18... Ne6 {[%clk 0:02:50]} 19. Bf6 {[%clk 0:01:23.9]} 19...
Bg7 {[%clk 0:02:32.9]} 20. Bxg7 {[%clk 0:01:19.7]} 20... Kxg7 {[%clk 0:02:33.3]}
21. b3 {[%clk 0:01:06.1]} 21... Bxd3 {[%clk 0:02:30.7]} 22. Bxd3 {[%clk
0:00:59.1]} 22... Nac5 {[%clk 0:02:30.3]} 23. Bc4 {[%clk 0:00:54.8]} 23... Nf4
{[%clk 0:02:12.2]} 24. b4 {[%clk 0:00:51.3]} 24... b5 {[%clk 0:02:12.3]} 25.
Bxf7 {[%clk 0:00:32.4]} 25... Ncd3+ {[%clk 0:02:10.2]} 26. Kc2 {[%clk
0:00:13.1]} 26... Kxf7 {[%clk 0:02:04.2]} 27. Rxd3 {[%clk 0:00:13.1]} 27... Nxd3
{[%clk 0:02:05.1]} 28. Kxd3 {[%clk 0:00:13.4]} 28... g5 {[%clk 0:01:58.5]} 29.
e5 {[%clk 0:00:13]} 29... Ke6 {[%clk 0:01:58.5]} 30. Ke4 {[%clk 0:00:13]} 30...
Rf8 {[%clk 0:01:57.1]} 31. Ne2 {[%clk 0:00:08.8]} 31... Rxf2 {[%clk 0:01:55.9]}
32. Nd4+ {[%clk 0:00:08.7]} 32... Kd7 {[%clk 0:01:48.9]} 33. Nf3 {[%clk
0:00:07.1]} 33... Rxa2 {[%clk 0:01:36.8]} 34. Nxg5 {[%clk 0:00:06.2]} 34... Rxh2
{[%clk 0:01:36.4]} 35. Kf5 {[%clk 0:00:05.6]} 35... Rf2+ {[%clk 0:01:31.2]} 36.
Ke4 {[%clk 0:00:05.5]} 36... h6 {[%clk 0:01:29.3]} 37. Nh7 {[%clk 0:00:02.5]}
37... Rf7 {[%clk 0:01:20.4]} 38. Nf6+ {[%clk 0:00:00.6]} 38... Ke6 {[%clk
0:01:18.3]} 39. Nh5 {[%clk 0:00:00.2]} 39... Rf1 {[%clk 0:00:59.1]} 40. Nf4+
{[%clk 0:00:00.7]} 40... Ke7 {[%clk 0:00:51.7]} 41. Kf5 {[%clk 0:00:01.1]} 41...
a5 {[%clk 0:00:38.1]} 42. Ke4 {[%clk 0:00:01.5]} 42... Rxf4+ {[%clk 0:00:34]}
43. Kxf4 {[%clk 0:00:01.4]} 43... a4 {[%clk 0:00:32.8]} 44. Kf5 {[%clk
0:00:00.9]} 44... a3 {[%clk 0:00:33]} 45. Kg6 {[%clk 0:00:01.5]} 45... a2 {[%clk
0:00:33]} 46. Kxh6 {[%clk 0:00:01.8]} 46... a1=Q {[%clk 0:00:32.8]} 47. g5
{[%clk 0:00:02.1]} 47... Qxe5 {[%clk 0:00:32.5]} 48. g6 {[%clk 0:00:01.9]} 48...
Kf6 {[%clk 0:00:31.6]} 0-1

[Event "Late-Titled-Tuesday-Blitz-May-14-2024"]
[Site "Chess.com"]
[Date "2024.05.14"]
[Round "11"]
[White "Ramil_Faizrakhmanov"]
[Black "PenguinPacks"]
[Result "0-1"]
[WhiteElo "2851"]
[BlackElo "2584"]
[TimeControl "180+1"]
[EndTime "16:04:04 PDT"]
[Termination "PenguinPacks won on time"]

1. d4 {[%clk 0:02:59.9]} 1... d5 {[%clk 0:02:59.8]} 2. c4 {[%clk 0:03:00.4]}
2... dxc4 {[%clk 0:03:00.7]} 3. e4 {[%clk 0:02:57.8]} 3... Nf6 {[%clk
0:03:01.1]} 4. e5 {[%clk 0:02:57.9]} 4... Nd5 {[%clk 0:02:57.3]} 5. Bxc4 {[%clk
0:02:58.3]} 5... Nb6 {[%clk 0:02:58]} 6. Bb3 {[%clk 0:02:58.2]} 6... Nc6 {[%clk
0:02:58.5]} 7. Nf3 {[%clk 0:02:57]} 7... Bg4 {[%clk 0:02:40.7]} 8. Be3 {[%clk
0:02:56.2]} 8... e6 {[%clk 0:02:40.4]} 9. Nc3 {[%clk 0:02:49.2]} 9... a5 {[%clk
0:02:38.7]} 10. O-O {[%clk 0:02:47.1]} 10... Bb4 {[%clk 0:02:25.8]} 11. h3
{[%clk 0:02:45.5]} 11... Bh5 {[%clk 0:02:25.8]} 12. g4 {[%clk 0:02:44.1]} 12...
Bg6 {[%clk 0:02:26.4]} 13. d5 {[%clk 0:02:42.3]} 13... Bxc3 {[%clk 0:02:20.3]}
14. dxc6 {[%clk 0:02:40.1]} 14... Bxb2 {[%clk 0:01:47]} 15. cxb7 {[%clk
0:02:38]} 15... Rb8 {[%clk 0:01:47.4]} 16. Qxd8+ {[%clk 0:02:21.5]} 16... Rxd8
{[%clk 0:01:47.5]} 17. Rad1 {[%clk 0:02:16]} 17... O-O {[%clk 0:01:44.9]} 18.
Rxd8 {[%clk 0:01:46.9]} 18... Rxd8 {[%clk 0:01:43.9]} 19. Rd1 {[%clk 0:01:46.2]}
19... Rb8 {[%clk 0:01:40]} 20. Ng5 {[%clk 0:00:42.2]} 20... h6 {[%clk
0:01:28.2]} 21. Nxe6 {[%clk 0:00:21.7]} 21... fxe6 {[%clk 0:01:22.5]} 22. Bxe6+
{[%clk 0:00:22.6]} 22... Kf8 {[%clk 0:01:23]} 23. Bc5+ {[%clk 0:00:09.6]} 23...
Ke8 {[%clk 0:01:20.7]} 24. f4 {[%clk 0:00:08.7]} 24... Be4 {[%clk 0:01:18]} 25.
Kf2 {[%clk 0:00:03.1]} 25... Bxb7 {[%clk 0:01:07.2]} 26. h4 {[%clk 0:00:03.5]}
26... Bc6 {[%clk 0:01:06.3]} 27. g5 {[%clk 0:00:03.4]} 27... Na4 {[%clk
0:01:00]} 28. Be3 {[%clk 0:00:02.6]} 28... Nc3 {[%clk 0:00:53]} 29. Rd3 {[%clk
0:00:01.7]} 29... Ke7 {[%clk 0:00:36.5]} 30. Bc4 {[%clk 0:00:01.9]} 30... Ne4+
{[%clk 0:00:31.5]} 31. Kg1 {[%clk 0:00:02.2]} 31... hxg5 {[%clk 0:00:25.8]} 32.
hxg5 {[%clk 0:00:02.4]} 32... Rh8 {[%clk 0:00:23]} 33. Bd5 {[%clk 0:00:02.3]}
33... Bxd5 {[%clk 0:00:19.4]} 34. Rxd5 {[%clk 0:00:03.2]} 34... Bc3 {[%clk
0:00:17.2]} 35. f5 {[%clk 0:00:03.2]} 35... Rh3 {[%clk 0:00:16.2]} 36. Bf4
{[%clk 0:00:02.5]} 36... Rf3 {[%clk 0:00:16]} 37. Bh2 {[%clk 0:00:02.5]} 37...
Nxg5 {[%clk 0:00:15.5]} 38. Rc5 {[%clk 0:00:02.2]} 38... Bd4+ {[%clk 0:00:14.4]}
39. Kg2 {[%clk 0:00:01.6]} 39... Bxc5 {[%clk 0:00:14.2]} 0-1